[Event "Titled Tuesday Blitz October 11 Early 2022"]
[White "Moreno Perez, Tobias Sebastian"]
[Black "Blokhin, Sofia"]
[WhiteFideId "186716"]
[BlackFideId "4508190"]
[WhiteElo "2471"]
[BlackElo "2005"]
[Result "1-0"]
[Round "08"]
[TimeControl "180+1"]
[Date "2022.10.12"]
[WhiteClock "0:00:01"]
[BlackClock "0:00:33"]

1. Nf3 {[%clk 0:03:00]}  e6 {[%clk 0:02:59]} 2. c4 {[%clk 0:03:01]}  f5 {[%clk 0:02:58]} 3. g3 {[%clk 0:03:01]}  Nf6 {[%clk 0:02:59]} 4. Bg2 {[%clk 0:03:01]}  Be7 {[%clk 0:02:58]} 5. O-O {[%clk 0:03:01]}  O-O {[%clk 0:02:59]} 6. d4 {[%clk 0:03:02]}  d5 {[%clk 0:02:59]} 7. Nc3 {[%clk 0:03:00]}  c6 {[%clk 0:02:56]} 8. b3 {[%clk 0:02:55]}  Ne4 {[%clk 0:02:55]} 9. Bb2 {[%clk 0:02:52]}  Nd7 {[%clk 0:02:53]} 10. Qc2 {[%clk 0:02:48]}  g5 {[%clk 0:02:50]} 11. Nd2 {[%clk 0:02:47]}  Bf6 {[%clk 0:02:44]} 12. e3 {[%clk 0:02:39]}  b6 {[%clk 0:02:40]} 13. Ndxe4 {[%clk 0:02:38]}  dxe4 {[%clk 0:02:37]} 14. Nxe4 {[%clk 0:02:38]}  fxe4 {[%clk 0:02:34]} 15. Bxe4 {[%clk 0:02:39]}  Qe7 {[%clk 0:02:32]} 16. Bxc6 {[%clk 0:02:39]}  Rb8 {[%clk 0:02:30]} 17. f4 {[%clk 0:02:23]}  Bb7 {[%clk 0:02:26]} 18. Bxb7 {[%clk 0:02:21]}  Rxb7 {[%clk 0:02:27]} 19. fxg5 {[%clk 0:02:13]}  Bxg5 {[%clk 0:02:26]} 20. Rxf8+ {[%clk 0:02:14]}  Nxf8 {[%clk 0:02:23]} 21. Qe4 {[%clk 0:02:11]}  Ng6 {[%clk 0:02:20]} 22. Rf1 {[%clk 0:02:08]}  Rb8 {[%clk 0:02:16]} 23. h4 {[%clk 0:02:02]}  Bf6 {[%clk 0:02:11]} 24. h5 {[%clk 0:02:01]}  Nf8 {[%clk 0:02:09]} 25. Qf4 {[%clk 0:02:01]}  Nd7 {[%clk 0:02:04]} 26. h6 {[%clk 0:01:36]}  Bg5 {[%clk 0:02:01]} 27. Qg4 {[%clk 0:01:26]}  Rf8 {[%clk 0:01:53]} 28. Rxf8+ {[%clk 0:01:12]}  Kxf8 {[%clk 0:01:54]} 29. Qf3+ {[%clk 0:00:45]}  Kg8 {[%clk 0:01:48]} 30. d5 {[%clk 0:00:44]}  e5 {[%clk 0:01:44]} 31. Qg4 {[%clk 0:00:39]}  Kf8 {[%clk 0:01:38]} 32. d6 {[%clk 0:00:22]}  Bxe3+ {[%clk 0:01:30]} 33. Kg2 {[%clk 0:00:19]}  Qf7 {[%clk 0:01:24]} 34. Qe4 {[%clk 0:00:14]}  Qf2+ {[%clk 0:01:22]} 35. Kh3 {[%clk 0:00:14]}  Qf1+ {[%clk 0:01:16]} 36. Kh4 {[%clk 0:00:10]}  Qf6+ {[%clk 0:01:07]} 37. Kg4 {[%clk 0:00:10]}  Qxh6 {[%clk 0:00:51]} 38. Qf5+ {[%clk 0:00:07]}  Nf6+ {[%clk 0:00:50]} 39. Kf3 {[%clk 0:00:07]}  e4+ {[%clk 0:00:49]} 40. Kg2 {[%clk 0:00:05]}  Bg5 {[%clk 0:00:42]} 41. d7 {[%clk 0:00:04]}  Ke7 {[%clk 0:00:39]} 42. Ba3+ {[%clk 0:00:03]}  Kd8 {[%clk 0:00:38]} 43. Qe6 {[%clk 0:00:02]}  Qh5 {[%clk 0:00:35]} 44. Qe7+ {[%clk 0:00:01]}  Kc7 {[%clk 0:00:32]} 45. d8=Q+ {[%clk 0:00:02]}  Kc6 {[%clk 0:00:33]} 46. Qdd6# {[%clk 0:00:01]} 1-0


[Site "https://www.chess.com"]

[Event "Titled Tuesday Blitz October 11 Early 2022"]
[White "Munkhgal, Gombosuren"]
[Black "Ohanyan, Emin"]
[WhiteFideId "4901266"]
[BlackFideId "13312022"]
[WhiteElo "2576"]
[BlackElo "2302"]
[Result "1-0"]
[Round "08"]
[TimeControl "180+1"]
[Date "2022.10.11"]
[WhiteClock "0:00:38"]
[BlackClock "0:00:01"]

1. d4 {[%clk 0:02:56]}  d5 {[%clk 0:02:59]} 2. Bf4 {[%clk 0:02:55]}  Nf6 {[%clk 0:02:58]} 3. e3 {[%clk 0:02:56]}  Bg4 {[%clk 0:02:50]} 4. f3 {[%clk 0:02:54]}  Bf5 {[%clk 0:02:46]} 5. g4 {[%clk 0:02:54]}  Bg6 {[%clk 0:02:46]} 6. h4 {[%clk 0:02:54]}  h5 {[%clk 0:02:46]} 7. g5 {[%clk 0:02:54]}  Nfd7 {[%clk 0:02:47]} 8. Bd3 {[%clk 0:02:54]}  Bxd3 {[%clk 0:02:46]} 9. cxd3 {[%clk 0:02:55]}  g6 {[%clk 0:02:47]} 10. Nc3 {[%clk 0:02:55]}  c6 {[%clk 0:02:43]} 11. e4 {[%clk 0:02:51]}  Bg7 {[%clk 0:02:43]} 12. e5 {[%clk 0:02:49]}  Nf8 {[%clk 0:02:41]} 13. Be3 {[%clk 0:02:48]}  Ne6 {[%clk 0:02:40]} 14. f4 {[%clk 0:02:47]}  Bf8 {[%clk 0:02:37]} 15. Qf3 {[%clk 0:02:43]}  Ng7 {[%clk 0:02:37]} 16. Nge2 {[%clk 0:02:42]}  Nf5 {[%clk 0:02:37]} 17. Ng3 {[%clk 0:02:39]}  Nxg3 {[%clk 0:02:37]} 18. Qxg3 {[%clk 0:02:40]}  e6 {[%clk 0:02:38]} 19. O-O {[%clk 0:02:35]}  Nd7 {[%clk 0:02:36]} 20. Rfc1 {[%clk 0:02:35]}  a5 {[%clk 0:02:34]} 21. Na4 {[%clk 0:02:34]}  Be7 {[%clk 0:02:23]} 22. Qf3 {[%clk 0:02:34]}  O-O {[%clk 0:02:21]} 23. Bf2 {[%clk 0:02:31]}  Nb6 {[%clk 0:01:20]} 24. Nc5 {[%clk 0:02:28]}  Qc7 {[%clk 0:01:20]} 25. Re1 {[%clk 0:02:23]}  Nd7 {[%clk 0:01:02]} 26. f5 {[%clk 0:02:20]}  Nxc5 {[%clk 0:00:49]} 27. dxc5 {[%clk 0:02:20]}  exf5 {[%clk 0:00:50]} 28. e6 {[%clk 0:02:21]}  Rfe8 {[%clk 0:00:41]} 29. exf7+ {[%clk 0:02:13]}  Kxf7 {[%clk 0:00:42]} 30. d4 {[%clk 0:02:13]}  Bf8 {[%clk 0:00:40]} 31. Bg3 {[%clk 0:02:14]}  Qd7 {[%clk 0:00:37]} 32. Be5 {[%clk 0:02:14]}  Re6 {[%clk 0:00:38]} 33. Re2 {[%clk 0:02:10]}  Rae8 {[%clk 0:00:37]} 34. Rae1 {[%clk 0:02:10]}  Be7 {[%clk 0:00:30]} 35. Qd3 {[%clk 0:02:06]}  Bd8 {[%clk 0:00:30]} 36. Rf1 {[%clk 0:02:03]}  Kg8 {[%clk 0:00:24]} 37. Rfe1 {[%clk 0:01:55]}  Kf7 {[%clk 0:00:20]} 38. Kg2 {[%clk 0:01:54]}  Bc7 {[%clk 0:00:19]} 39. Qg3 {[%clk 0:01:52]}  Bxe5 {[%clk 0:00:19]} 40. Rxe5 {[%clk 0:01:43]}  Rxe5 {[%clk 0:00:19]} 41. Rxe5 {[%clk 0:01:37]}  Rxe5 {[%clk 0:00:12]} 42. Qxe5 {[%clk 0:01:35]}  Qe7 {[%clk 0:00:12]} 43. Qh8 {[%clk 0:01:30]}  Qe2+ {[%clk 0:00:12]} 44. Kg1 {[%clk 0:01:30]}  Qe1+ {[%clk 0:00:11]} 45. Kg2 {[%clk 0:01:30]}  Qe2+ {[%clk 0:00:11]} 46. Kg1 {[%clk 0:01:29]}  Qd1+ {[%clk 0:00:11]} 47. Kf2 {[%clk 0:01:26]}  Qd2+ {[%clk 0:00:12]} 48. Kf3 {[%clk 0:01:23]}  Qd3+ {[%clk 0:00:13]} 49. Kf2 {[%clk 0:01:23]}  Qc2+ {[%clk 0:00:13]} 50. Kf3 {[%clk 0:01:22]}  Qe4+ {[%clk 0:00:08]} 51. Kf2 {[%clk 0:01:22]}  Qxh4+ {[%clk 0:00:09]} 52. Ke2 {[%clk 0:01:20]}  Qg4+ {[%clk 0:00:08]} 53. Kd3 {[%clk 0:01:19]}  Qxg5 {[%clk 0:00:07]} 54. Qh7+ {[%clk 0:01:19]}  Ke6 {[%clk 0:00:06]} 55. Qxb7 {[%clk 0:01:16]}  Qg3+ {[%clk 0:00:07]} 56. Kc2 {[%clk 0:01:16]}  Qf2+ {[%clk 0:00:07]} 57. Kd3 {[%clk 0:01:11]}  Qf3+ {[%clk 0:00:07]} 58. Kd2 {[%clk 0:01:11]}  Qf4+ {[%clk 0:00:08]} 59. Kc2 {[%clk 0:01:04]}  Qe4+ {[%clk 0:00:08]} 60. Kc1 {[%clk 0:01:02]}  Qxd4 {[%clk 0:00:06]} 61. Qxc6+ {[%clk 0:01:01]}  Ke5 {[%clk 0:00:05]} 62. Qd6+ {[%clk 0:01:00]}  Ke4 {[%clk 0:00:05]} 63. c6 {[%clk 0:01:01]}  Qe3+ {[%clk 0:00:04]} 64. Kc2 {[%clk 0:01:01]}  Qd3+ {[%clk 0:00:04]} 65. Kc1 {[%clk 0:01:01]}  Qf1+ {[%clk 0:00:05]} 66. Kd2 {[%clk 0:01:00]}  Qg2+ {[%clk 0:00:05]} 67. Kc3 {[%clk 0:00:56]}  Qf3+ {[%clk 0:00:05]} 68. Kc2 {[%clk 0:00:56]}  Qd3+ {[%clk 0:00:06]} 69. Kc1 {[%clk 0:00:56]}  Qc4+ {[%clk 0:00:06]} 70. Kd2 {[%clk 0:00:51]}  Qd4+ {[%clk 0:00:02]} 71. Kc2 {[%clk 0:00:50]}  Qc4+ {[%clk 0:00:01]} 72. Kd1 {[%clk 0:00:49]}  Qd3+ {[%clk 0:00:02]} 73. Ke1 {[%clk 0:00:49]}  Qb1+ {[%clk 0:00:02]} 74. Kf2 {[%clk 0:00:47]}  Qxb2+ {[%clk 0:00:02]} 75. Kg3 {[%clk 0:00:46]}  Qc3+ {[%clk 0:00:01]} 76. Kh4 {[%clk 0:00:45]}  Qe1+ {[%clk 0:00:02]} 77. Kg5 {[%clk 0:00:45]}  Qe3+ {[%clk 0:00:01]} 78. Kf6 {[%clk 0:00:43]}  Qb6 {[%clk 0:00:01]} 79. Kg5 {[%clk 0:00:39]}  d4 {[%clk 0:00:01]} 80. Qd7 {[%clk 0:00:38]} 1-0


[Site "https://www.chess.com"]

[Event "Titled Tuesday Blitz October 11 Early 2022"]
[White "Namitbir Singh Walia"]
[Black "Samant Aditya S"]
[WhiteFideId "35071068"]
[BlackFideId "35080580"]
[WhiteElo "2239"]
[BlackElo "2367"]
[Result "0-1"]
[Round "08"]
[TimeControl "180+1"]
[Date "2022.10.12"]
[WhiteClock "0:00:06"]
[BlackClock "0:00:08"]

1. d4 {[%clk 0:02:59]}  Nf6 {[%clk 0:02:59]} 2. c4 {[%clk 0:02:59]}  e6 {[%clk 0:02:59]} 3. Nf3 {[%clk 0:02:58]}  Bb4+ {[%clk 0:02:59]} 4. Bd2 {[%clk 0:02:58]}  c5 {[%clk 0:02:59]} 5. g3 {[%clk 0:02:53]}  Qb6 {[%clk 0:02:57]} 6. Bg2 {[%clk 0:01:54]}  Nc6 {[%clk 0:02:56]} 7. dxc5 {[%clk 0:01:23]}  Bxc5 {[%clk 0:02:55]} 8. O-O {[%clk 0:01:24]}  Ne4 {[%clk 0:02:47]} 9. e3 {[%clk 0:01:13]}  Qxb2 {[%clk 0:02:38]} 10. Nd4 {[%clk 0:00:57]}  Nxd4 {[%clk 0:01:30]} 11. Bxe4 {[%clk 0:00:50]}  Qxa1 {[%clk 0:01:15]} 12. Bc3 {[%clk 0:00:50]}  Qxa2 {[%clk 0:01:13]} 13. exd4 {[%clk 0:00:51]}  Be7 {[%clk 0:01:13]} 14. Nd2 {[%clk 0:00:49]}  Qa3 {[%clk 0:01:07]} 15. Qf3 {[%clk 0:00:47]}  O-O {[%clk 0:00:43]} 16. c5 {[%clk 0:00:33]}  f5 {[%clk 0:00:25]} 17. Bc2 {[%clk 0:00:32]}  Qa6 {[%clk 0:00:20]} 18. Qe3 {[%clk 0:00:20]}  Qc6 {[%clk 0:00:19]} 19. Bb3 {[%clk 0:00:20]}  Bf6 {[%clk 0:00:18]} 20. d5 {[%clk 0:00:19]}  exd5 {[%clk 0:00:18]} 21. Bb4 {[%clk 0:00:15]}  Kh8 {[%clk 0:00:14]} 22. Nf3 {[%clk 0:00:16]}  a5 {[%clk 0:00:14]} 23. Ba3 {[%clk 0:00:16]}  a4 {[%clk 0:00:14]} 24. Ba2 {[%clk 0:00:16]}  Qe6 {[%clk 0:00:14]} 25. Qd2 {[%clk 0:00:14]}  Qe8 {[%clk 0:00:07]} 26. Re1 {[%clk 0:00:13]}  Qh5 {[%clk 0:00:06]} 27. Bxd5 {[%clk 0:00:14]}  Ra6 {[%clk 0:00:07]} 28. Ne5 {[%clk 0:00:13]}  Re6 {[%clk 0:00:06]} 29. Bxe6 {[%clk 0:00:13]}  dxe6 {[%clk 0:00:07]} 30. c6 {[%clk 0:00:13]}  Rd8 {[%clk 0:00:07]} 31. Qe3 {[%clk 0:00:08]}  bxc6 {[%clk 0:00:06]} 32. Nxc6 {[%clk 0:00:07]}  Re8 {[%clk 0:00:07]} 33. Ne5 {[%clk 0:00:07]}  Bb7 {[%clk 0:00:06]} 34. Bd6 {[%clk 0:00:07]}  Bd5 {[%clk 0:00:05]} 35. Qc5 {[%clk 0:00:06]}  Bxe5 {[%clk 0:00:04]} 36. Bxe5 {[%clk 0:00:07]}  Qf3 {[%clk 0:00:04]} 37. Kf1 {[%clk 0:00:07]}  Qg2+ {[%clk 0:00:03]} 38. Ke2 {[%clk 0:00:08]}  Qe4+ {[%clk 0:00:04]} 39. Kf1 {[%clk 0:00:08]}  Qc4+ {[%clk 0:00:03]} 40. Qxc4 {[%clk 0:00:08]}  Bxc4+ {[%clk 0:00:04]} 41. Kg2 {[%clk 0:00:08]}  Bd5+ {[%clk 0:00:04]} 42. f3 {[%clk 0:00:08]}  Rc8 {[%clk 0:00:03]} 43. Re2 {[%clk 0:00:06]}  h6 {[%clk 0:00:03]} 44. Kf2 {[%clk 0:00:06]}  a3 {[%clk 0:00:04]} 45. f4 {[%clk 0:00:06]}  a2 {[%clk 0:00:04]} 46. Re1 {[%clk 0:00:07]}  Kh7 {[%clk 0:00:04]} 47. h4 {[%clk 0:00:07]}  g6 {[%clk 0:00:03]} 48. Ke3 {[%clk 0:00:06]}  Rc2 {[%clk 0:00:03]} 49. Kd4 {[%clk 0:00:06]}  Rc4+ {[%clk 0:00:03]} 50. Ke3 {[%clk 0:00:06]}  Rb4 {[%clk 0:00:04]} 51. Kd3 {[%clk 0:00:06]}  Rb3+ {[%clk 0:00:05]} 52. Kc2 {[%clk 0:00:06]}  Rxg3 {[%clk 0:00:05]} 53. Rc1 {[%clk 0:00:05]}  Rg4 {[%clk 0:00:03]} 54. Kb2 {[%clk 0:00:04]}  Rxh4 {[%clk 0:00:03]} 55. Rc7+ {[%clk 0:00:04]}  Kg8 {[%clk 0:00:03]} 56. Rg7+ {[%clk 0:00:05]}  Kf8 {[%clk 0:00:04]} 57. Rxg6 {[%clk 0:00:05]}  Rh1 {[%clk 0:00:03]} 58. Rf6+ {[%clk 0:00:04]}  Ke8 {[%clk 0:00:03]} 59. Kc2 {[%clk 0:00:03]}  a1=Q {[%clk 0:00:04]} 60. Bxa1 {[%clk 0:00:04]}  Rxa1 {[%clk 0:00:04]} 61. Rxh6 {[%clk 0:00:05]}  Ra2+ {[%clk 0:00:05]} 62. Kd3 {[%clk 0:00:05]}  Ra4 {[%clk 0:00:06]} 63. Ke3 {[%clk 0:00:05]}  Re4+ {[%clk 0:00:07]} 64. Kd3 {[%clk 0:00:06]}  Kd7 {[%clk 0:00:08]} 65. Rh7+ {[%clk 0:00:07]}  Kd6 {[%clk 0:00:09]} 66. Rh8 {[%clk 0:00:07]}  Rxf4 {[%clk 0:00:09]} 67. Rd8+ {[%clk 0:00:08]}  Ke5 {[%clk 0:00:10]} 68. Rh8 {[%clk 0:00:07]}  Rd4+ {[%clk 0:00:10]} 69. Ke2 {[%clk 0:00:08]}  Bc4+ {[%clk 0:00:10]} 70. Ke3 {[%clk 0:00:09]}  Rd3+ {[%clk 0:00:11]} 71. Kf2 {[%clk 0:00:10]}  Ke4 {[%clk 0:00:11]} 72. Rh4+ {[%clk 0:00:10]}  f4 {[%clk 0:00:12]} 73. Rh6 {[%clk 0:00:11]}  e5 {[%clk 0:00:12]} 74. Rh8 {[%clk 0:00:12]}  Rd2+ {[%clk 0:00:13]} 75. Ke1 {[%clk 0:00:13]}  Ra2 {[%clk 0:00:12]} 76. Kd1 {[%clk 0:00:14]}  f3 {[%clk 0:00:11]} 77. Rc8 {[%clk 0:00:15]}  Bd3 {[%clk 0:00:09]} 78. Rf8 {[%clk 0:00:07]}  Ke3 {[%clk 0:00:08]} 79. Rf6 {[%clk 0:00:06]}  Ra1# {[%clk 0:00:08]} 0-1


[Site "https://www.chess.com"]

[Event "Titled Tuesday Blitz October 11 Early 2022"]
[White "Orlov, Georgi"]
[Black "Samarth, J Rao"]
[WhiteFideId "2011271"]
[BlackFideId "46652370"]
[WhiteElo "2580"]
[BlackElo "1564"]
[Result "1-0"]
[Round "08"]
[TimeControl "180+1"]
[Date "2022.10.12"]
[WhiteClock "0:00:05"]
[BlackClock "0:00:03"]

1. d4 {[%clk 0:03:00]}  d5 {[%clk 0:02:44]} 2. c4 {[%clk 0:03:00]}  e6 {[%clk 0:02:43]} 3. Nf3 {[%clk 0:02:59]}  Nf6 {[%clk 0:02:43]} 4. g3 {[%clk 0:02:59]}  Be7 {[%clk 0:02:43]} 5. Bg2 {[%clk 0:02:59]}  O-O {[%clk 0:02:44]} 6. O-O {[%clk 0:02:59]}  dxc4 {[%clk 0:02:43]} 7. Qc2 {[%clk 0:02:58]}  b5 {[%clk 0:02:43]} 8. a4 {[%clk 0:02:48]}  b4 {[%clk 0:02:43]} 9. Nbd2 {[%clk 0:02:40]}  Bb7 {[%clk 0:02:38]} 10. Nxc4 {[%clk 0:02:36]}  c5 {[%clk 0:02:38]} 11. Be3 {[%clk 0:02:27]}  Be4 {[%clk 0:02:26]} 12. Qd2 {[%clk 0:02:03]}  Nbd7 {[%clk 0:02:17]} 13. Rfd1 {[%clk 0:02:02]}  Bd5 {[%clk 0:02:02]} 14. Rac1 {[%clk 0:01:51]}  Bxc4 {[%clk 0:01:57]} 15. Rxc4 {[%clk 0:01:50]}  Nb6 {[%clk 0:01:57]} 16. Rcc1 {[%clk 0:01:50]}  c4 {[%clk 0:01:45]} 17. Ne5 {[%clk 0:01:44]}  Nfd5 {[%clk 0:01:01]} 18. a5 {[%clk 0:01:41]}  c3 {[%clk 0:00:59]} 19. bxc3 {[%clk 0:01:39]}  bxc3 {[%clk 0:00:56]} 20. Qa2 {[%clk 0:01:35]}  Nxe3 {[%clk 0:00:49]} 21. fxe3 {[%clk 0:01:35]}  Nd5 {[%clk 0:00:48]} 22. Nc6 {[%clk 0:01:25]}  Qd7 {[%clk 0:00:39]} 23. Bxd5 {[%clk 0:01:23]}  exd5 {[%clk 0:00:29]} 24. Qxd5 {[%clk 0:01:22]}  Bd6 {[%clk 0:00:27]} 25. Rxc3 {[%clk 0:01:02]}  Rfe8 {[%clk 0:00:27]} 26. e4 {[%clk 0:00:51]}  Qc7 {[%clk 0:00:20]} 27. Rf1 {[%clk 0:00:46]}  Rac8 {[%clk 0:00:10]} 28. e5 {[%clk 0:00:39]}  Bf8 {[%clk 0:00:09]} 29. Qf3 {[%clk 0:00:34]}  Qd7 {[%clk 0:00:09]} 30. d5 {[%clk 0:00:32]}  Rc7 {[%clk 0:00:06]} 31. e4 {[%clk 0:00:29]}  Rec8 {[%clk 0:00:05]} 32. Kg2 {[%clk 0:00:27]}  Qe8 {[%clk 0:00:05]} 33. Qg4 {[%clk 0:00:24]}  g6 {[%clk 0:00:04]} 34. Rcf3 {[%clk 0:00:15]}  Bg7 {[%clk 0:00:04]} 35. Qf4 {[%clk 0:00:13]}  Rd7 {[%clk 0:00:03]} 36. h4 {[%clk 0:00:12]}  Rcc7 {[%clk 0:00:03]} 37. a6 {[%clk 0:00:12]}  Qc8 {[%clk 0:00:02]} 38. e6 {[%clk 0:00:11]}  fxe6 {[%clk 0:00:01]} 39. dxe6 {[%clk 0:00:11]}  Rxc6 {[%clk 0:00:01]} 40. exd7 {[%clk 0:00:10]}  Qxd7 {[%clk 0:00:02]} 41. Qb8+ {[%clk 0:00:09]}  Rc8 {[%clk 0:00:02]} 42. Qb7 {[%clk 0:00:09]}  Rc7 {[%clk 0:00:03]} 43. Qd5+ {[%clk 0:00:07]}  Qxd5 {[%clk 0:00:02]} 44. exd5 {[%clk 0:00:08]}  Rd7 {[%clk 0:00:03]} 45. Rd3 {[%clk 0:00:07]}  Be5 {[%clk 0:00:02]} 46. Rb1 {[%clk 0:00:07]}  Bd6 {[%clk 0:00:01]} 47. Rb7 {[%clk 0:00:07]}  Rd8 {[%clk 0:00:02]} 48. Rxa7 {[%clk 0:00:07]}  Bc5 {[%clk 0:00:02]} 49. Rb7 {[%clk 0:00:07]}  Rb8 {[%clk 0:00:01]} 50. d6 {[%clk 0:00:07]}  Ra8 {[%clk 0:00:01]} 51. d7 {[%clk 0:00:07]}  Be7 {[%clk 0:00:02]} 52. Rc7 {[%clk 0:00:07]}  Bd8 {[%clk 0:00:02]} 53. Rc8 {[%clk 0:00:08]}  Rxa6 {[%clk 0:00:02]} 54. Rxd8+ {[%clk 0:00:08]}  Kf7 {[%clk 0:00:03]} 55. Rh8 {[%clk 0:00:07]}  g5 {[%clk 0:00:03]} 56. d8=Q {[%clk 0:00:07]}  gxh4 {[%clk 0:00:04]} 57. Qe8+ {[%clk 0:00:07]}  Kf6 {[%clk 0:00:04]} 58. Rf8+ {[%clk 0:00:07]}  Kg5 {[%clk 0:00:03]} 59. Qe5+ {[%clk 0:00:07]}  Kh6 {[%clk 0:00:03]} 60. Qf4+ {[%clk 0:00:06]}  Kg7 {[%clk 0:00:03]} 61. Rf7+ {[%clk 0:00:06]}  Kg8 {[%clk 0:00:03]} 62. Rd8# {[%clk 0:00:05]} 1-0


[Site "https://www.chess.com"]

[Event "Titled Tuesday Blitz October 11 Early 2022"]
[White "Orzech, Dominik"]
[Black "Hardaway, Brewington"]
[WhiteFideId "1115065"]
[BlackFideId "30941849"]
[WhiteElo "2272"]
[BlackElo "2159"]
[Result "1-0"]
[Round "08"]
[TimeControl "180+1"]
[Date "2022.10.12"]
[WhiteClock "0:00:23"]
[BlackClock "0:00:18"]

1. Nf3 {[%clk 0:02:45]}  Nf6 {[%clk 0:02:59]} 2. c4 {[%clk 0:02:34]}  e6 {[%clk 0:02:58]} 3. Nc3 {[%clk 0:02:32]}  d5 {[%clk 0:02:58]} 4. d4 {[%clk 0:02:17]}  Bb4 {[%clk 0:02:55]} 5. cxd5 {[%clk 0:02:16]}  exd5 {[%clk 0:02:51]} 6. Qa4+ {[%clk 0:02:16]}  Nc6 {[%clk 0:02:50]} 7. Bg5 {[%clk 0:02:12]}  h6 {[%clk 0:02:48]} 8. Bxf6 {[%clk 0:02:03]}  Qxf6 {[%clk 0:02:49]} 9. e3 {[%clk 0:02:02]}  O-O {[%clk 0:02:48]} 10. Be2 {[%clk 0:02:02]}  Qg6 {[%clk 0:02:40]} 11. O-O {[%clk 0:02:00]}  Bh3 {[%clk 0:02:39]} 12. Ne1 {[%clk 0:01:59]}  Rae8 {[%clk 0:02:35]} 13. Qd1 {[%clk 0:01:49]}  Be6 {[%clk 0:02:23]} 14. Rc1 {[%clk 0:01:48]}  Ne7 {[%clk 0:02:17]} 15. Nd3 {[%clk 0:01:45]}  Bd6 {[%clk 0:02:14]} 16. Nb5 {[%clk 0:01:44]}  Bf5 {[%clk 0:02:02]} 17. Nxc7 {[%clk 0:01:38]}  Rc8 {[%clk 0:02:00]} 18. Nb5 {[%clk 0:01:37]}  Bb8 {[%clk 0:01:55]} 19. Ne5 {[%clk 0:01:29]}  Qe6 {[%clk 0:01:51]} 20. Nf3 {[%clk 0:01:13]}  Rxc1 {[%clk 0:01:44]} 21. Qxc1 {[%clk 0:01:12]}  Rc8 {[%clk 0:01:44]} 22. Nc3 {[%clk 0:01:11]}  Ng6 {[%clk 0:01:43]} 23. Qd2 {[%clk 0:01:10]}  a6 {[%clk 0:01:40]} 24. Rc1 {[%clk 0:01:08]}  b5 {[%clk 0:01:27]} 25. Nd1 {[%clk 0:01:04]}  Rxc1 {[%clk 0:01:21]} 26. Qxc1 {[%clk 0:01:04]}  Qd6 {[%clk 0:01:16]} 27. Qc5 {[%clk 0:01:02]}  Qd8 {[%clk 0:01:12]} 28. h3 {[%clk 0:00:57]}  Ne7 {[%clk 0:01:02]} 29. Nc3 {[%clk 0:00:54]}  Bd6 {[%clk 0:00:54]} 30. Qa7 {[%clk 0:00:53]}  Bc8 {[%clk 0:00:54]} 31. Qa8 {[%clk 0:00:51]}  Kh7 {[%clk 0:00:51]} 32. Bd3+ {[%clk 0:00:50]}  g6 {[%clk 0:00:51]} 33. Ne5 {[%clk 0:00:47]}  Kg7 {[%clk 0:00:27]} 34. f4 {[%clk 0:00:42]}  f6 {[%clk 0:00:25]} 35. Nc6 {[%clk 0:00:39]}  Qc7 {[%clk 0:00:22]} 36. Nxe7 {[%clk 0:00:38]}  Qxe7 {[%clk 0:00:23]} 37. Nxd5 {[%clk 0:00:36]}  Qe6 {[%clk 0:00:23]} 38. e4 {[%clk 0:00:33]}  g5 {[%clk 0:00:20]} 39. f5 {[%clk 0:00:29]}  Qe8 {[%clk 0:00:20]} 40. Nb6 {[%clk 0:00:24]}  Qc6 {[%clk 0:00:18]} 41. Qxc6 {[%clk 0:00:23]} 1-0


[Site "https://www.chess.com"]

[Event "Titled Tuesday Blitz October 11 Early 2022"]
[White "Osiecki, Stanislaw"]
[Black "Ismayil, Malak"]
[WhiteFideId "1102990"]
[BlackFideId "13412604"]
[WhiteElo "2088"]
[BlackElo "1879"]
[Result "0-1"]
[Round "08"]
[TimeControl "180+1"]
[Date "2022.10.12"]
[WhiteClock "0:00:01"]
[BlackClock "0:00:09"]

1. e4 {[%clk 0:02:51]}  e5 {[%clk 0:02:59]} 2. Nf3 {[%clk 0:02:50]}  Nc6 {[%clk 0:02:59]} 3. Bb5 {[%clk 0:02:49]}  a6 {[%clk 0:02:58]} 4. Bxc6 {[%clk 0:02:49]}  dxc6 {[%clk 0:02:59]} 5. O-O {[%clk 0:02:49]}  Bd6 {[%clk 0:02:53]} 6. d4 {[%clk 0:02:49]}  Qe7 {[%clk 0:02:45]} 7. dxe5 {[%clk 0:02:48]}  Bxe5 {[%clk 0:02:46]} 8. Nxe5 {[%clk 0:02:48]}  Qxe5 {[%clk 0:02:46]} 9. f4 {[%clk 0:02:48]}  Qc5+ {[%clk 0:02:45]} 10. Kh1 {[%clk 0:02:47]}  Ne7 {[%clk 0:02:44]} 11. Qe2 {[%clk 0:02:47]}  O-O {[%clk 0:02:44]} 12. Be3 {[%clk 0:02:47]}  Qa5 {[%clk 0:02:34]} 13. Nd2 {[%clk 0:02:44]}  Qb4 {[%clk 0:02:07]} 14. Rab1 {[%clk 0:02:30]}  Qd6 {[%clk 0:01:53]} 15. Qf2 {[%clk 0:02:26]}  f6 {[%clk 0:01:48]} 16. Rfd1 {[%clk 0:02:21]}  Qe6 {[%clk 0:01:46]} 17. a3 {[%clk 0:02:10]}  b6 {[%clk 0:01:34]} 18. f5 {[%clk 0:02:01]}  Qf7 {[%clk 0:01:33]} 19. Bf4 {[%clk 0:01:58]}  Ra7 {[%clk 0:01:23]} 20. Qg3 {[%clk 0:01:58]}  c5 {[%clk 0:00:50]} 21. Bxc7 {[%clk 0:01:54]}  Nxf5 {[%clk 0:00:49]} 22. exf5 {[%clk 0:01:47]}  Rxc7 {[%clk 0:00:46]} 23. Rf1 {[%clk 0:01:40]}  Bb7 {[%clk 0:00:44]} 24. Nc4 {[%clk 0:01:33]}  b5 {[%clk 0:00:38]} 25. Nd6 {[%clk 0:01:30]}  Qd5 {[%clk 0:00:36]} 26. Rbd1 {[%clk 0:01:18]}  Qc6 {[%clk 0:00:33]} 27. Nxb7 {[%clk 0:01:13]}  Rxb7 {[%clk 0:00:34]} 28. Rd6 {[%clk 0:01:09]}  Qe4 {[%clk 0:00:31]} 29. c3 {[%clk 0:00:40]}  a5 {[%clk 0:00:20]} 30. h4 {[%clk 0:00:35]}  Re7 {[%clk 0:00:19]} 31. h5 {[%clk 0:00:31]}  Qe2 {[%clk 0:00:19]} 32. Rf3 {[%clk 0:00:23]}  Kh8 {[%clk 0:00:19]} 33. Rdd3 {[%clk 0:00:18]}  c4 {[%clk 0:00:14]} 34. Rd4 {[%clk 0:00:16]}  Rfe8 {[%clk 0:00:10]} 35. Rg4 {[%clk 0:00:15]}  Qe1+ {[%clk 0:00:09]} 36. Kh2 {[%clk 0:00:15]}  Qxg3+ {[%clk 0:00:09]} 37. Rfxg3 {[%clk 0:00:14]}  h6 {[%clk 0:00:10]} 38. Rd4 {[%clk 0:00:09]}  Kh7 {[%clk 0:00:08]} 39. Rd5 {[%clk 0:00:08]}  Re5 {[%clk 0:00:08]} 40. Rxe5 {[%clk 0:00:08]}  Rxe5 {[%clk 0:00:09]} 41. Rf3 {[%clk 0:00:08]}  Kg8 {[%clk 0:00:09]} 42. Kg3 {[%clk 0:00:06]}  Re2 {[%clk 0:00:09]} 43. Kf4 {[%clk 0:00:03]}  Rxb2 {[%clk 0:00:08]} 44. Re3 {[%clk 0:00:02]}  Rxg2 {[%clk 0:00:08]} 45. Re8+ {[%clk 0:00:01]}  Kh7 {[%clk 0:00:09]} 0-1


[Site "https://www.chess.com"]